[Event "SS Manhem Chess Week 2019 GM and IM tournaments"]
[Site "Molnlycke kulturhus, Biblioteksgatan 2, Molnlycke, Sweden"]
[Date "2019.08.14"]
[Round "6.8"]
[White "Kucuksari, Kaan"]
[Black "Pham, Bich Ngoc"]
[Result "1-0"]
[WhiteElo "2310"]
[BlackElo "2176"]
[TimeControl "90 minutes for 40 moves + 30 minutes for the rest of the game + 30 seconds per move from move one."]

1. d4 {[%emt 0:00:00]} f5 {[%emt 0:09:18]} 2. c4 {[%emt 0:00:00]} Nf6 {[%emt 0:
00:09]} 3. Nc3 {[%emt 0:00:00]} g6 {[%emt 0:00:07]} 4. g3 {[%emt 0:00:00]} Bg7
{[%emt 0:00:06]} 5. Nf3 {[%emt 0:00:02]} O-O {[%emt 0:00:18]} 6. Bg2 {[%emt 0:
00:02]} d6 {[%emt 0:00:12]} 7. O-O {[%emt 0:00:06]} c6 {[%emt 0:00:08]} 8. Rb1
{[%emt 0:00:03]} Qc7 {[%emt 0:02:37]} 9. d5 {[%emt 0:07:20]} e5 {[%emt 0:05:33]
} 10. dxe6 {[%emt 0:00:48]} Qe7 {[%emt 0:02:54]} 11. Bf4 {[%emt 0:04:15]} Rd8 {
[%emt 0:00:29]} 12. e4 {[%emt 0:05:39]} Bxe6 {[%emt 0:05:32]} 13. Re1 {[%emt 0:
04:10]} Qf8 {[%emt 0:07:29]} (13... Qd7 $16) 14. Qb3 {[%emt 0:20:38]} Na6 {
[%emt 0:11:17]} 15. Ng5 $14 {[%emt 0:05:38]} Bf7 {[%emt 0:09:52]} 16. Qxb7 {
[%emt 0:06:25]} Bxc4 {[%emt 0:00:17]} 17. exf5 {[%emt 0:16:24]} gxf5 {[%emt 0:
09:44]} 18. Bxc6 {[%emt 0:17:13]} h6 {[%emt 0:04:57]} 19. Ne6 {[%emt 0:01:12]}
Nc5 {[%emt 0:06:52]} 20. Qxg7+ {[%emt 0:01:50]} Qxg7 {[%emt 0:00:06]} 21. Nxg7
{[%emt 0:00:02]} Kxg7 {[%emt 0:01:06]} 22. Bxa8 {[%emt 0:00:06]} Rxa8 {[%emt 0:
00:04]} 23. Bxd6 {[%emt 0:00:07]} Nd3 {[%emt 0:00:41]} 24. Re7+ {[%emt 0:00:53]
} Kg6 {[%emt 0:00:08]} 25. b3 {[%emt 0:02:25]} Ba6 {[%emt 0:00:06]} 26. Be5 {
[%emt 0:01:43]} Nxe5 {[%emt 0:04:19]} 27. Rxe5 {[%emt 0:00:06]} Bb7 {[%emt 0:
01:43]} 28. Re7 {[%emt 0:03:33]} Bf3 {[%emt 0:00:41]} 29. Ne2 {[%emt 0:02:47]}
Nd5 {[%emt 0:01:41]} 30. Re6+ {[%emt 0:00:25]} Kf7 {[%emt 0:00:20]} 31. Nd4 {
[%emt 0:00:38]} Rd8 {[%emt 0:02:51]} 32. Rbe1 {[%emt 0:00:44]} Be4 {[%emt 0:00:
17]} 33. f3 {[%emt 0:00:26]} Nc7 {[%emt 0:01:08]} 34. Rxh6 {[%emt 0:00:22]} Kg7
{[%emt 0:00:20]} 35. Rh4 {[%emt 0:00:43]} Rxd4 {[%emt 0:01:54]} 36. fxe4 {
[%emt 0:00:07]} Rd2 {[%emt 0:01:19]} 37. exf5 {[%emt 0:00:06]} Nd5 {[%emt 0:00:
03]} 38. Ra4 {[%emt 0:00:46]} Kf6 {[%emt 0:00:16]} 39. Rxa7 {[%emt 0:00:07]}
Nc3 {[%emt 0:00:12]} 40. Ra6+ {[%emt 0:01:18]} Kxf5 {[%emt 0:00:08]} 41. Rf1+ {
[%emt 0:30:32]} Ke5 {[%emt 0:30:29]} 42. Rf2 {[%emt 0:00:00]} Rd1+ {[%emt 0:00:
00]} 43. Kg2 {[%emt 0:00:00]} 1-0

[Event "SS Manhem Chess Week 2019 GM and IM tournaments"]
[Site "Molnlycke kulturhus, Biblioteksgatan 2, Molnlycke, Sweden"]
[Date "2019.08.14"]
[Round "6.9"]
[White "Malmstig, Erik"]
[Black "Renman, Nils-Gustaf"]
[Result "0-1"]
[WhiteElo "2357"]
[BlackElo "2346"]
[TimeControl "90 minutes for 40 moves + 30 minutes for the rest of the game + 30 seconds per move from move one."]

1. e4 {[%emt 0:01:50]} e6 {[%emt 0:00:00]} 2. d4 {[%emt 0:00:07]} d5 {[%emt 0:
00:00]} 3. Nc3 {[%emt 0:00:06]} Nf6 {[%emt 0:00:09]} 4. Bg5 {[%emt 0:01:01]}
Bb4 {[%emt 0:00:21]} 5. e5 {[%emt 0:00:19]} h6 {[%emt 0:00:06]} 6. Bh4 {
[%emt 0:00:09]} g5 {[%emt 0:00:14]} 7. Bg3 {[%emt 0:00:08]} Ne4 {[%emt 0:00:23]
} 8. Nge2 {[%emt 0:00:09]} c5 {[%emt 0:01:47] C12: French: Classical System:
McCutcheon Variation} 9. a3 {[%emt 0:01:01]} Bxc3+ {[%emt 0:10:32]} 10. Nxc3 {
[%emt 0:02:49]} Qa5 {[%emt 0:17:39]} 11. Qd3 $146 {[%emt 0:17:54]} ({
Predecessor:} 11. dxc5 Nc6 {1/2-1/2 (66) Popov,I (2596)-Morozevich,A (2683)
Moscow 2016}) 11... Nc6 {[%emt 0:01:58]} 12. dxc5 {[%emt 0:02:08]} a6 {[%emt 0:
02:45]} 13. O-O-O $1 {[%emt 0:06:07]} Nxc3 {[%emt 0:12:45]} 14. Qxc3 {[%emt 0:
00:19]} Qxc3 {[%emt 0:00:08]} 15. bxc3 {[%emt 0:00:08]} Bd7 {[%emt 0:00:05]}
16. h4 {[%emt 0:07:32]} O-O-O {[%emt 0:02:37]} 17. c4 {[%emt 0:03:46]} Ne7 {
[%emt 0:01:29]} 18. cxd5 {[%emt 0:01:27]} Nxd5 {[%emt 0:07:41]} 19. Rd4 {
[%emt 0:07:23]} Ne7 {[%emt 0:01:33]} 20. Bd3 {[%emt 0:05:49]} Bb5 {[%emt 0:11:
49]} 21. Rxd8+ {[%emt 0:07:22]} Rxd8 {[%emt 0:00:02]} 22. Bxb5 {[%emt 0:00:57]}
axb5 {[%emt 0:00:07]} 23. hxg5 {[%emt 0:00:54]} hxg5 {[%emt 0:00:06]} 24. Rh5 {
[%emt 0:01:22]} Rd5 $14 {[%emt 0:05:24]} 25. Rxg5 {[%emt 0:01:56]} Ng6 {
[%emt 0:08:26]} 26. f4 {[%emt 0:12:55]} Rxc5 {[%emt 0:00:14]} 27. Kb2 {[%emt 0:
03:40]} Kd7 {[%emt 0:01:34]} 28. Bf2 {[%emt 0:05:15]} Rc4 {[%emt 0:03:02]} 29.
g3 {[%emt 0:00:13]} Re4 {[%emt 0:00:36]} 30. Kc3 {[%emt 0:03:19]} Kc6 {[%emt 0:
01:35]} 31. Rh5 {[%emt 0:02:41]} Rc4+ {[%emt 0:03:52]} 32. Kd2 {[%emt 0:02:59]}
Kd5 {[%emt 0:01:34]} 33. Rh7 {[%emt 0:00:15]} Rc7 {[%emt 0:00:47]} 34. Kd3 {
[%emt 0:00:16]} Rd7 {[%emt 0:01:23]} 35. c3 {[%emt 0:00:50]} Kc6+ {[%emt 0:00:
34]} 36. Ke4 {[%emt 0:00:46]} f5+ {[%emt 0:00:21]} 0-1

[Event "SS Manhem Chess Week 2019 GM and IM tournaments"]
[Site "Molnlycke kulturhus, Biblioteksgatan 2, Molnlycke, Sweden"]
[Date "2019.08.14"]
[Round "6.10"]
[White "Ornstein, Axel"]
[Black "Rydstrom, Tom"]
[Result "1-0"]
[WhiteElo "2311"]
[BlackElo "2345"]
[TimeControl "90 minutes for 40 moves + 30 minutes for the rest of the game + 30 seconds per move from move one."]

1. d4 {[%emt 0:00:00]} Nf6 {[%emt 0:00:00]} 2. c4 {[%emt 0:00:00]} e6 {[%emt 0:
00:00]} 3. Nc3 {[%emt 0:00:00]} Bb4 {[%emt 0:00:04]} 4. e3 {[%emt 0:00:14]} O-O
{[%emt 0:00:45]} 5. Nge2 {[%emt 0:00:44]} c6 {[%emt 0:00:20]} 6. a3 {[%emt 0:
04:49]} Ba5 {[%emt 0:00:06]} 7. Ng3 {[%emt 0:02:21]} d5 {[%emt 0:00:17]} 8. Be2
{[%emt 0:00:49]} Nbd7 {[%emt 0:01:08]} 9. O-O {[%emt 0:00:08]} e5 {[%emt 0:04:
01]} 10. dxe5 {[%emt 0:00:36]} Nxe5 {[%emt 0:00:06]} 11. b4 {[%emt 0:00:10]}
Bc7 {[%emt 0:07:15]} 12. cxd5 {[%emt 0:00:39]} cxd5 {[%emt 0:00:54]} 13. f4 {
[%emt 0:11:18]} Nc6 {[%emt 0:11:16]} 14. Bf3 {[%emt 0:00:34]} d4 {[%emt 0:05:
58]} 15. Na4 {[%emt 0:15:14]} Re8 {[%emt 0:21:51]} 16. b5 {[%emt 0:06:03]} Na5
{[%emt 0:01:35]} 17. exd4 {[%emt 0:00:15]} Be6 {[%emt 0:05:06]} 18. Nc5 {
[%emt 0:02:08]} Bc4 {[%emt 0:01:56]} 19. Rf2 {[%emt 0:00:18]} Bb6 {[%emt 0:04:
32]} 20. Bb2 {[%emt 0:01:35]} Nd5 {[%emt 0:01:14]} 21. a4 {[%emt 0:17:00]} Qe7
{[%emt 0:08:59]} 22. Be4 {[%emt 0:23:32]} Rad8 {[%emt 0:01:51]} 23. Qf3 {
[%emt 0:04:59]} Nf6 {[%emt 0:19:50]} 24. Nf5 {[%emt 0:01:22]} Qc7 {[%emt 0:00:
00]} 25. Bc2 {[%emt 0:00:41]} Bd5 {[%emt 0:00:11]} 26. Qg3 {[%emt 0:01:09]} g6
{[%emt 0:00:21]} 27. Ne3 {[%emt 0:00:42]} Rxe3 {[%emt 0:01:41]} 28. Qxe3 {
[%emt 0:00:10]} Ng4 {[%emt 0:00:45]} 29. Qe2 {[%emt 0:00:55]} Nxf2 {[%emt 0:00:
18]} 30. Qxf2 {[%emt 0:00:01]} Nc4 {[%emt 0:00:20]} 31. Bc3 {[%emt 0:00:17]}
Qd6 {[%emt 0:02:10]} 32. Re1 {[%emt 0:02:43]} Bc7 {[%emt 0:00:08]} 33. Nd3 {
[%emt 0:00:15]} b6 {[%emt 0:00:58]} 34. Bb4 {[%emt 0:00:38]} Qd7 {[%emt 0:00:
25]} 35. Re7 {[%emt 0:00:50]} Qc8 {[%emt 0:00:01]} 36. Ne5 {[%emt 0:02:03]} Nd6
{[%emt 0:00:21]} 37. f5 {[%emt 0:01:00]} g5 {[%emt 0:01:15]} 38. Nc6 {[%emt 0:
01:28]} Re8 {[%emt 0:00:25]} 39. Qe3 {[%emt 0:00:33]} Bxc6 {[%emt 0:00:31]} 40.
bxc6 {[%emt 0:01:06]} Rxe7 {[%emt 0:00:35]} 41. Qxe7 {[%emt 0:30:14]} Nxf5 {
[%emt 0:02:17]} 42. Qxg5+ {[%emt 0:00:00]} Ng7 {[%emt 0:00:05]} 43. d5 {
[%emt 0:00:00]} Qe8 {[%emt 0:01:45]} 44. Qe7 {[%emt 0:00:00]} Qxe7 {[%emt 0:00:
43]} 45. Bxe7 {[%emt 0:00:00]} Ne8 {[%emt 0:00:04]} 46. Bh4 {[%emt 0:00:00]}
Kg7 {[%emt 0:02:18]} 47. Kf2 {[%emt 0:00:00]} Nf6 {[%emt 0:00:07]} 48. Bb3 {
[%emt 0:00:00]} Kg6 {[%emt 0:05:05]} 49. Kf3 {[%emt 0:00:00]} Ne8 {[%emt 0:03:
49]} 50. Bc2+ {[%emt 0:00:00]} Kg7 {[%emt 0:00:12]} 51. Bf2 {[%emt 0:00:00]} h5
{[%emt 0:02:11]} 52. Bd4+ {[%emt 0:00:00]} Kf8 {[%emt 0:00:07]} 53. h4 {
[%emt 0:00:00]} Ke7 {[%emt 0:00:10]} 54. g4 {[%emt 0:00:00]} hxg4+ {[%emt 0:00:
05]} 55. Kxg4 {[%emt 0:00:00]} Nf6+ {[%emt 0:00:12]} 56. Bxf6+ {[%emt 0:00:00]}
Kxf6 {[%emt 0:00:02]} 57. h5 {[%emt 0:00:00]} Be5 {[%emt 0:02:16]} 58. h6 {
[%emt 0:00:00]} Ke7 {[%emt 0:00:07]} 59. Kf5 {[%emt 0:00:00]} Bc3 {[%emt 0:01:
45]} 60. c7 {[%emt 0:00:00]} 1-0

[Event "SS Manhem Chess Week 2019 GM and IM tournaments"]
[Site "Molnlycke kulturhus, Biblioteksgatan 2, Molnlycke, Sweden"]
[Date "2019.08.14"]
[Round "7.1"]
[White "Seo, Jung Min"]
[Black "Urkedal, Frode Olav Olsen"]
[Result "1-0"]
[TimeControl "90 minutes for 40 moves + 30 minutes for the rest of the game + 30 seconds per move from move one."]
[WhiteTitle "FM"]
[BlackTitle "GM"]
[WhiteFideId "1734687"]
[BlackFideId "1506102"]
[WhiteElo "2409"]
[BlackElo "2566"]

1. e4 {[%clk 01:30:58]} e5 {[%clk 01:30:55]} {[%emt 00:00:06]} 2. Nf3 {[%clk
01:31:20]} {[%emt 00:00:08]} Nc6 {[%clk 01:31:21]} {[%emt 00:00:04]} 3. Bb5
{[%clk 01:31:38]} {[%emt 00:00:12]} a6 {[%clk 01:31:45]} {[%emt 00:00:06]} 4.
Ba4 {[%clk 01:32:06]} {[%emt 00:00:02]} Nf6 {[%clk 01:32:10]} {[%emt 00:00:05]}
5. d3 {[%clk 01:32:28]} {[%emt 00:00:08]} b5 {[%clk 01:32:19]} {[%emt
00:00:20]} 6. Bb3 {[%clk 01:32:46]} {[%emt 00:00:12]} Be7 {[%clk 01:32:42]}
{[%emt 00:00:06]} 7. a4 {[%clk 01:30:35]} {[%emt 00:02:41]} b4 {[%clk
01:32:55]} {[%emt 00:00:18]} 8. a5 {[%clk 01:28:24]} {[%emt 00:02:41]} O-O
{[%clk 01:30:37]} {[%emt 00:02:48]} 9. O-O {[%clk 01:27:57]} {[%emt 00:00:57]}
d6 {[%clk 01:30:41]} {[%emt 00:00:25]} 10. Nbd2 {[%clk 01:28:20]} {[%emt
00:00:07]} Be6 {[%clk 01:30:23]} {[%emt 00:00:48]} 11. Bxe6 {[%clk 01:24:35]}
{[%emt 00:04:16]} fxe6 {[%clk 01:30:47]} {[%emt 00:00:06]} 12. c3 {[%clk
01:24:36]} {[%emt 00:00:29]} Rb8 {[%clk 01:29:50]} {[%emt 00:01:27]} 13. Nc4
{[%clk 01:19:22]} {[%emt 00:05:45]} Qe8 {[%clk 01:25:42]} {[%emt 00:04:38]} 14.
Qe2 {[%clk 01:09:59]} {[%emt 00:09:52]} Nh5 {[%clk 01:21:41]} {[%emt 00:04:30]}
15. d4 {[%clk 01:07:09]} {[%emt 00:03:20]} bxc3 {[%clk 01:21:42]} {[%emt
00:00:29]} 16. bxc3 {[%clk 01:07:08]} {[%emt 00:00:30]} exd4 {[%clk 01:21:43]}
{[%emt 00:00:29]} 17. Nxd4 {[%emt 00:14:22]} Bd8 {[%emt 00:04:10]} 18. Be3
{[%emt 00:11:34]} Nxd4 {[%clk 01:01:53]} {[%emt 00:00:02]} 19. cxd4 {[%clk
00:59:10]} {[%emt 00:00:11]} Rb5 {[%clk 01:01:59]} {[%emt 00:00:24]} 20. Rfb1
{[%clk 00:53:58]} {[%emt 00:05:41]} Nf6 {[%clk 00:55:04]} {[%emt 00:07:25]} 21.
e5 {[%clk 00:43:08]} {[%emt 00:11:21]} Nd5 {[%clk 00:52:46]} {[%emt 00:02:47]}
22. Bd2 {[%clk 00:40:43]} {[%emt 00:02:55]} Rxb1+ {[%clk 00:43:38]} {[%emt
00:09:38]} 23. Rxb1 {[%clk 00:41:08]} {[%emt 00:00:06]} Qg6 {[%clk 00:33:11]}
{[%emt 00:10:55]} 24. Re1 {[%clk 00:40:53]} {[%emt 00:00:45]} Bg5 {[%clk
00:32:04]} {[%emt 00:01:37]} 25. exd6 {[%clk 00:38:56]} {[%emt 00:02:27]} Bxd2
{[%clk 00:32:13]} {[%emt 00:00:21]} 26. Qxd2 {[%clk 00:39:24]} {[%emt
00:00:03]} Nf4 {[%clk 00:25:33]} {[%emt 00:07:09]} 27. f3 {[%clk 00:39:38]}
{[%emt 00:00:16]} cxd6 {[%clk 00:25:56]} {[%emt 00:00:06]} 28. Nxd6 {[%clk
00:39:32]} {[%emt 00:00:36]} h5 {[%clk 00:26:02]} {[%emt 00:00:24]} 29. Ne4
{[%clk 00:32:22]} {[%emt 00:07:40]} h4 {[%clk 00:26:17]} {[%emt 00:00:15]} 30.
g3 {[%clk 00:32:06]} {[%emt 00:00:47]} hxg3 {[%clk 00:18:44]} {[%emt 00:08:03]}
31. hxg3 {[%clk 00:31:54]} {[%emt 00:00:42]} Nh3+ {[%clk 00:19:06]} {[%emt
00:00:08]} 32. Kg2 {[%clk 00:30:50]} {[%emt 00:01:33]} Nf4+ {[%emt 00:03:20]}
33. Kf1 {[%clk 00:26:57]} {[%emt 00:01:31]} Nh5 {[%clk 00:17:57]} {[%emt
00:01:42]} 34. Kf2 {[%clk 00:21:57]} {[%emt 00:05:29]} Qg4 {[%clk 00:15:41]}
{[%emt 00:02:45]} 35. Qe2 {[%clk 00:21:17]} {[%emt 00:01:11]} Qh3 {[%clk
00:15:28]} {[%emt 00:00:43]} 36. Rg1 {[%clk 00:21:13]} {[%emt 00:00:34]} Nf6
{[%clk 00:10:36]} {[%emt 00:05:22]} 37. Nxf6+ {[%clk 00:19:28]} {[%emt
00:02:16]} Rxf6 {[%clk 00:11:00]} {[%emt 00:00:06]} 38. Qxa6 {[%clk 00:19:32]}
{[%emt 00:00:26]} Qf5 {[%clk 00:09:49]} {[%emt 00:01:40]} 39. Qc8+ {[%clk
00:18:40]} {[%emt 00:01:21]} Rf8 {[%clk 00:08:50]} {[%emt 00:01:29]} 40. Qc3
{[%clk 00:18:47]} {[%emt 00:00:23]} g5 {[%clk 00:05:06]} {[%emt 00:04:14]} 41.
g4 {[%clk 00:12:29]} {[%emt 00:06:49]} Qf4 {[%clk 00:29:41]} {[%emt 00:05:55]}
42. Kg2 {[%clk 00:42:21]} {[%emt 00:00:37]} Rf7 {[%clk 00:29:47]} {[%emt
00:00:24]} 43. Rh1 {[%clk 00:41:25]} {[%emt 00:01:27]} Rc7 {[%clk 00:28:08]}
{[%emt 00:02:09]} 44. Qd3 {[%clk 00:41:44]} {[%emt 00:00:11]} Qf6 {[%clk
00:28:22]} {[%emt 00:00:15]} 45. Re1 {[%clk 00:40:52]} {[%emt 00:01:22]} Rd7
{[%clk 00:28:15]} {[%emt 00:00:37]} 46. Qe4 {[%clk 00:39:09]} {[%emt 00:02:12]}
Kf7 {[%clk 00:27:08]} {[%emt 00:01:37]} 47. Qe5 {[%clk 00:39:06]} {[%emt
00:00:34]} Rxd4 {[%clk 00:21:48]} {[%emt 00:05:50]} 48. Qxf6+ {[%clk 00:39:33]}
{[%emt 00:00:03]} Kxf6 {[%clk 00:22:13]} {[%emt 00:00:06]} 49. Ra1 {[%clk
00:40:02]} {[%emt 00:00:01]} Rd2+ {[%clk 00:21:27]} {[%emt 00:01:15]} 50. Kg3
{[%clk 00:40:25]} {[%emt 00:00:06]} Rd8 {[%clk 00:17:27]} {[%emt 00:04:31]} 51.
a6 {[%clk 00:40:47]} {[%emt 00:00:08]} Ke5 {[%clk 00:17:48]} {[%emt 00:00:09]}
52. a7 {[%clk 00:41:02]} {[%emt 00:00:16]} Ra8 {[%clk 00:18:13]} {[%emt
00:00:04]} 53. Kf2 {[%clk 00:41:06]} {[%emt 00:00:26]} Kd4 {[%clk 00:18:28]}
{[%emt 00:00:15]} 54. Ke2 {[%clk 00:41:23]} {[%emt 00:00:12]} e5 {[%clk
00:16:34]} {[%emt 00:02:25]} 55. Ra4+ {[%clk 00:41:50]} {[%emt 00:00:03]} Kd5
{[%clk 00:16:57]} {[%emt 00:00:07]} 56. Ke3 {[%clk 00:42:16]} {[%emt 00:00:04]}
e4 {[%clk 00:17:14]} {[%emt 00:00:13]} 57. Ra5+ {[%clk 00:42:23]} {[%emt
00:00:24]} 1-0

[Event "SS Manhem Chess Week 2019 GM and IM tournaments"]
[Site "Molnlycke kulturhus, Biblioteksgatan 2, Molnlycke, Sweden"]
[Date "2019.08.14"]
[Round "7.2"]
[White "Blomqvist, Erik"]
[Black "Hector, Jonny"]
[Result "1-0"]
[TimeControl "90 minutes for 40 moves + 30 minutes for the rest of the game + 30 seconds per move from move one."]
[WhiteTitle "GM"]
[BlackTitle "GM"]
[WhiteFideId "1709437"]
[BlackFideId "1700090"]
[WhiteElo "2507"]
[BlackElo "2493"]

1. e4 {[%clk 01:30:54]} {[%emt 00:00:03]} e5 {[%clk 01:30:56]} {[%emt
00:00:04]} 2. Nf3 {[%clk 01:31:15]} {[%emt 00:00:10]} Nc6 {[%clk 01:31:21]}
{[%emt 00:00:06]} 3. Bb5 {[%clk 01:31:36]} {[%emt 00:00:09]} a6 {[%clk
01:31:45]} {[%emt 00:00:06]} 4. Ba4 {[%clk 01:31:59]} {[%emt 00:00:07]} Nf6
{[%clk 01:32:07]} {[%emt 00:00:06]} 5. O-O {[%clk 01:31:56]} {[%emt 00:00:33]}
Bc5 {[%clk 01:31:51]} {[%emt 00:00:47]} 6. c3 {[%clk 01:31:55]} {[%emt
00:00:31]} b5 {[%clk 01:31:50]} {[%emt 00:00:30]} 7. Bb3 {[%clk 01:31:56]}
{[%emt 00:00:29]} d6 {[%clk 01:31:25]} {[%emt 00:00:56]} 8. a4 {[%clk
01:31:53]} {[%emt 00:00:33]} Bg4 {[%clk 01:29:41]} {[%emt 00:02:13]} 9. axb5
{[%clk 01:31:54]} {[%emt 00:00:30]} axb5 {[%clk 01:29:54]} {[%emt 00:00:17]} 10.
Rxa8 {[%clk 01:32:16]} {[%emt 00:00:09]} Qxa8 {[%clk 01:30:15]} {[%emt
00:00:08]} 11. h3 {[%clk 01:32:04]} {[%emt 00:00:42]} Bd7 {[%clk 01:24:23]}
{[%emt 00:06:22]} 12. d4 {[%clk 01:28:52]} {[%emt 00:03:43]} Bb6 {[%clk
01:23:38]} {[%emt 00:01:14]} 13. Be3 {[%clk 00:56:29]} {[%emt 00:32:53]} Qa7
{[%clk 01:13:53]} {[%emt 00:10:15]} 14. Na3 {[%clk 00:44:46]} {[%emt 00:12:14]}
Nd8 {[%clk 01:01:35]} {[%emt 00:12:47]} 15. Re1 {[%clk 00:37:26]} {[%emt
00:07:50]} exd4 {[%clk 00:58:19]} {[%emt 00:03:46]} 16. cxd4 {[%clk 00:34:07]}
{[%emt 00:03:49]} O-O {[%clk 00:50:21]} {[%emt 00:08:28]} 17. e5 {[%clk
00:32:52]} {[%emt 00:01:45]} Ne8 {[%clk 00:47:27]} {[%emt 00:03:23]} 18. Qd3
{[%clk 00:32:41]} {[%emt 00:00:41]} Ne6 {[%clk 00:41:55]} {[%emt 00:06:02]} 19.
Nxb5 {[%clk 00:26:56]} {[%emt 00:06:16]} Qa6 {[%clk 00:33:38]} {[%emt
00:08:47]} 20. Bc2 {[%clk 00:27:18]} {[%emt 00:00:08]} g6 {[%clk 00:33:05]}
{[%emt 00:01:02]} 21. Nc3 {[%clk 00:26:55]} {[%emt 00:00:53]} Qxd3 {[%clk
00:32:04]} {[%emt 00:01:32]} 22. Bxd3 {[%clk 00:27:23]} {[%emt 00:00:02]} dxe5
{[%clk 00:31:44]} {[%emt 00:00:50]} 23. Nxe5 {[%clk 00:25:10]} {[%emt
00:02:42]} Bc8 {[%clk 00:32:02]} {[%emt 00:00:12]} 24. Nd5 {[%clk 00:24:10]}
{[%emt 00:01:31]} Nd6 {[%clk 00:28:26]} {[%emt 00:04:06]} 25. Bh6 {[%clk
00:23:34]} {[%emt 00:01:06]} Ng7 {[%clk 00:24:36]} {[%emt 00:04:20]} 26. Nxb6
{[%clk 00:16:34]} {[%emt 00:07:31]} cxb6 {[%clk 00:24:53]} {[%emt 00:00:12]} 27.
Rc1 {[%clk 00:15:32]} {[%emt 00:01:33]} Ndf5 {[%clk 00:21:39]} {[%emt
00:03:43]} 28. Be3 {[%clk 00:14:26]} {[%emt 00:01:36]} Be6 {[%clk 00:19:13]}
{[%emt 00:02:56]} 29. d5 {[%clk 00:12:35]} {[%emt 00:02:22]} Bxd5 {[%clk
00:14:39]} {[%emt 00:05:04]} 30. Nd7 {[%clk 00:11:40]} {[%emt 00:01:25]} Nxe3
{[%clk 00:12:47]} {[%emt 00:02:21]} 31. Nxf8 {[%clk 00:12:03]} {[%emt
00:00:07]} Nxg2 {[%clk 00:06:59]} {[%emt 00:06:18]} 32. Nd7 {[%clk 00:11:23]}
{[%emt 00:01:10]} Nh5 {[%clk 00:06:47]} {[%emt 00:00:42]} 33. Nxb6 {[%clk
00:10:45]} {[%emt 00:01:10]} Bf3 {[%clk 00:06:31]} {[%emt 00:00:45]} 34. Nc4
{[%clk 00:08:23]} {[%emt 00:02:53]} Nhf4 {[%clk 00:05:15]} {[%emt 00:01:46]} 35.
Ne5 {[%clk 00:03:16]} {[%emt 00:05:36]} Bd5 {[%clk 00:04:09]} {[%emt 00:01:37]}
36. Rc8+ {[%clk 00:01:36]} {[%emt 00:02:11]} Kg7 {[%clk 00:04:36]} {[%emt
00:00:03]} 37. Bc4 {[%clk 00:01:37]} {[%emt 00:00:29]} Nxh3+ {[%clk 00:02:59]}
{[%emt 00:02:06]} 38. Kh2 {[%clk 00:01:29]} {[%emt 00:00:38]} Bxc4 {[%clk
00:03:15]} {[%emt 00:00:14]} 39. Nxc4 {[%clk 00:01:29]} {[%emt 00:00:31]} Ngf4
{[%clk 00:02:11]} {[%emt 00:01:33]} 40. Kg3 {[%clk 00:00:59]} {[%emt 00:01:00]}
g5 {[%clk 00:02:33]} {[%emt 00:00:07]} 41. b4 {[%clk 00:30:08]} {[%emt
00:01:22]} h5 {[%clk 00:31:06]} {[%emt 00:01:56]} 42. f3 {[%clk 00:23:45]}
{[%emt 00:06:53]} h4+ {[%clk 00:26:31]} {[%emt 00:05:05]} 43. Kh2 {[%clk
00:24:04]} {[%emt 00:00:12]} Nf2 {[%clk 00:26:08]} {[%emt 00:00:51]} 44. Ne3
{[%clk 00:21:50]} {[%emt 00:02:45]} N2d3 {[%clk 00:24:58]} {[%emt 00:01:40]} 45.
b5 {[%clk 00:22:15]} {[%emt 00:00:06]} Ne5 {[%clk 00:22:19]} {[%emt 00:03:09]}
46. b6 {[%clk 00:21:54]} {[%emt 00:00:52]} Nxf3+ {[%clk 00:22:33]} {[%emt
00:00:16]} 47. Kh1 {[%clk 00:22:14]} {[%emt 00:00:10]} Nd3 {[%clk 00:21:19]}
{[%emt 00:01:44]} 48. b7 {[%clk 00:20:36]} {[%emt 00:02:08]} h3 {[%clk
00:21:36]} {[%emt 00:00:12]} 49. Nd1 {[%clk 00:20:03]} {[%emt 00:01:04]} 1-0

[Event "SS Manhem Chess Week 2019 GM and IM tournaments"]
[Site "Molnlycke kulturhus, Biblioteksgatan 2, Molnlycke, Sweden"]
[Date "2019.08.14"]
[Round "7.6"]
[White "Borsuk, Konstantin"]
[Black "Jacobsen, Mikkel Manosri"]
[Result "1/2-1/2"]
[TimeControl "90 minutes for 40 moves + 30 minutes for the rest of the game + 30 seconds per move from move one."]
[WhiteTitle "FM"]
[BlackTitle "FM"]
[WhiteFideId "14113406"]
[BlackFideId "1444514"]
[WhiteElo "2372"]
[BlackElo "2269"]

1. d4 {[%clk 01:30:58]} {[%emt 00:00:01]} Nf6 {[%clk 01:29:35]} {[%emt
00:01:25]} 2. c4 {[%clk 01:31:21]} {[%emt 00:00:07]} e6 {[%clk 01:29:59]}
{[%emt 00:00:06]} 3. Nc3 {[%clk 01:31:44]} {[%emt 00:00:07]} d5 {[%clk
01:30:22]} {[%emt 00:00:07]} 4. cxd5 {[%clk 01:31:45]} {[%emt 00:00:29]} exd5
{[%clk 01:30:46]} {[%emt 00:00:06]} 5. Bg5 {[%clk 01:32:05]} {[%emt 00:00:09]}
Nbd7 {[%clk 01:30:46]} {[%emt 00:00:31]} 6. e3 {[%clk 01:32:25]} {[%emt
00:00:09]} Be7 {[%clk 01:31:12]} {[%emt 00:00:05]} 7. Bd3 {[%clk 01:32:24]}
{[%emt 00:00:31]} O-O {[%clk 01:31:31]} {[%emt 00:00:11]} 8. Nge2 {[%clk
01:30:38]} {[%emt 00:02:16]} Re8 {[%clk 01:31:49]} {[%emt 00:00:12]} 9. O-O
{[%clk 01:27:03]} {[%emt 00:04:05]} h6 {[%clk 01:32:07]} {[%emt 00:00:11]} 10.
Bh4 {[%clk 01:24:01]} {[%emt 00:03:32]} a6 {[%clk 01:31:38]} {[%emt 00:00:59]}
11. Qc2 {[%clk 01:15:14]} {[%emt 00:09:17]} b5 {[%clk 01:31:46]} {[%emt
00:00:21]} 12. Rad1 {[%clk 01:13:40]} {[%emt 00:02:05]} Bb7 {[%clk 01:32:04]}
{[%emt 00:00:12]} 13. h3 {[%clk 01:12:39]} {[%emt 00:01:31]} c6 {[%clk
01:26:31]} {[%emt 00:06:03]} 14. Bg3 {[%clk 01:05:20]} {[%emt 00:07:48]} Qb6
{[%clk 01:25:50]} {[%emt 00:01:11]} 15. Nf4 {[%clk 00:59:43]} {[%emt 00:06:07]}
1/2-1/2